bitfinex/quotes_SOLUSD_20250313
["timestamp","ask_amount","ask_price","bid_price","bid_amount"]
[1741871471881,0.03,126.97,126.96,32.10254643]
[1741871472259,0.03,126.97,126.96,39.97894643]
[1741871472579,0.03,126.97,126.96,32.10254643]
[1741871473858,0.03,126.97,126.96,39.97894643]
[1741871474176,0.03,126.97,126.96,32.10254643]
[1741871474749,0.03,126.97,126.96,31.96038486]
[1741871475281,0.03,126.97,126.96,23.18038486]
[1741871475484,43.21038486,126.97,126.91,23.18038486]
[1741871476481,51.08658486,126.97,126.91,23.18038486]
[1741871478281,64.95561184,126.97,126.91,45.80941184]
[1741871478475,18.79181043,126.91,126.88,0.063]
[1741871478671,37.04941184,126.89,126.88,0.063]
[1741871480681,44.93021184,126.89,126.88,0.063]
[1741871481583,7.8804,126.9,126.88,0.063]
[1741871481784,44.92981184,126.9,126.88,0.063]
[1741871482279,37.04941184,126.89,126.88,0.063]
[1741871482785,47.47571184,126.89,126.88,0.063]
[1741871483958,72.55992241,126.89,126.88,0.063]
[1741871484163,72.70208398,126.89,126.88,0.063]
[1741871484366,72.70208398,126.89,126.88,0.0001]
[1741871484696,72.84424555,126.89,126.88,0.0001]
[1741871485187,18.79181043,126.88,126.87,0.0001]
[1741871485357,55.84122227,126.88,126.87,0.0001]
[1741871486166,63.72262227,126.88,126.87,0.0001]
[1741871487657,63.86478384,126.88,126.87,0.0001]
[1741871487860,64.63441184,126.88,126.81,37.04941184]
[1741871488076,44.93081184,126.88,126.82,37.04941184]
[1741871488280,47.47591184,126.89,126.84,37.04941184]
[1741871488869,44.92911184,126.91,126.85,37.04941184]
[1741871489070,37.04941184,126.9,126.83,15.3027]
[1741871489270,37.04941184,126.88,126.83,52.35211184]
[1741871489584,27.5786,126.91,126.85,37.04941184]
[1741871489585,7.8797,126.91,126.85,37.04941184]
[1741871489778,44.92831184,126.92,126.87,37.04941184]
[1741871490583,44.92831184,126.92,126.87,44.93141184]
[1741871490882,8.7007,126.93,126.88,37.04941184]
[1741871490883,47.34801184,126.93,126.88,37.04941184]
[1741871491062,39.46961184,126.93,126.88,37.04941184]
[1741871491257,37.04941184,126.93,126.88,37.04941184]
[1741871491471,37.04941184,126.95,126.9,37.04941184]
[1741871491669,7.8773,126.95,126.91,37.04941184]
[1741871491879,47.38411184,126.96,126.91,37.04941184]
[1741871492185,47.38411184,126.96,126.9,37.04941184]
[1741871492359,37.04941184,126.95,126.9,37.04941184]
[1741871492565,37.04941184,126.95,126.9,0.14216157]
[1741871492767,37.04941184,126.95,126.9,37.19157341]
[1741871492975,37.04941184,126.94,126.89,37.04941184]
[1741871493176,37.04941184,126.94,126.88,224.96]
[1741871493375,37.04941184,126.93,126.88,262.00941184]
[1741871493671,37.04941184,126.92,126.88,224.96]
[1741871493974,37.04941184,126.9,126.85,253.39157341]
[1741871494161,44.93021184,126.89,126.85,216.2]
[1741871494672,7.8808,126.89,126.85,216.2]
[1741871494870,7.8808,126.89,126.85,253.24941184]
[1741871495382,44.92961184,126.9,126.85,253.24941184]
[1741871496682,37.04941184,126.89,126.84,37.04941184]
[1741871496873,44.92961184,126.9,126.84,37.04941184]
[1741871497593,37.04941184,126.89,126.84,37.04941184]
[1741871497792,44.92961184,126.9,126.84,37.04941184]
[1741871499798,44.92921184,126.91,126.85,37.04941184]
[1741871500807,44.92861184,126.92,126.86,37.19157341]
[1741871500977,26.52674886,126.95,126.89,37.04941184]
[1741871501301,37.04941184,126.93,126.88,37.04941184]
[1741871501470,37.04941184,126.92,126.87,45.80941184]
[1741871502000,46.21944886,126.95,126.86,80.9]
[1741871502001,37.04941184,126.9,126.86,80.9]
[1741871502181,37.04941184,126.89,126.84,37.04941184]
[1741871502590,37.04941184,126.9,126.85,37.04941184]
[1741871502879,37.04941184,126.9,126.84,44.93321184]
[1741871503071,7.8808,126.89,126.84,37.04941184]
[1741871503496,37.04941184,126.87,126.84,0.063]
[1741871503700,37.04941184,126.88,126.84,0.063]
[1741871503905,55.6990607,126.87,126.84,0.063]
[1741871504394,37.04941184,126.87,126.84,0.063]
[1741871505099,7.8827,126.86,126.84,0.063]
[1741871507691,44.93211184,126.86,126.84,0.063]
[1741871508097,37.04941184,126.85,126.84,0.063]
[1741871508406,44.93211184,126.86,126.84,0.063]
[1741871509114,7.8827,126.86,126.84,0.063]
[1741871510802,23.19369568,126.86,126.84,0.063]
[1741871512288,2.536,126.9,126.84,23.25669568]
[1741871512488,2.536,126.9,126.86,23.19369568]
[1741871512814,25.72969568,126.9,126.85,23.19369568]
[1741871513000,2.536,126.9,126.86,23.19369568]
[1741871513305,11.2922,126.94,126.89,23.19369568]
[1741871513513,10.4102,126.94,126.89,23.19369568]
[1741871513882,33.60389568,126.94,126.89,23.19369568]
[1741871514083,2.5322,126.94,126.89,23.19369568]
[1741871514286,14.2996,126.96,126.91,37.05567022]
[1741871514499,37.05567022,126.95,126.89,37.05567022]
[1741871514695,37.05567022,126.94,126.89,37.05567022]
[1741871514897,7.8783,126.93,126.89,37.05567022]
[1741871515713,44.93357022,126.94,126.89,37.05567022]
[1741871516686,44.93357022,126.94,126.88,45.81567022]
[1741871516906,37.05567022,126.93,126.88,45.81567022]
[1741871517113,7.8789,126.92,126.88,37.05567022]
[1741871517418,44.93457022,126.92,126.87,37.05567022]
[1741871517610,37.05567022,126.91,126.86,117.95567022]
[1741871518213,37.05567022,126.91,126.86,80.9]
[1741871518511,37.05567022,126.9,126.86,80.9]
[1741871518707,55.70531908,126.91,126.86,80.9]
[1741871519010,55.70531908,126.91,126.86,117.95567022]
[1741871519212,44.93397022,126.93,126.87,37.05567022]
[1741871519395,7.8783,126.93,126.89,37.05567022]
[1741871519806,44.93397022,126.93,126.88,37.05567022]
[1741871520207,37.05567022,126.92,126.87,37.05567022]
[1741871520394,37.05567022,126.91,126.86,117.95567022]
[1741871520594,55.70531908,126.92,126.87,37.05567022]
[1741871520805,18.64964886,126.92,126.88,37.05567022]
[1741871521518,18.64964886,126.92,126.87,37.05567022]
[1741871521719,44.93497022,126.92,126.87,37.05567022]
[1741871522032,63.58371908,126.93,126.88,37.05567022]
[1741871522709,44.93407022,126.93,126.88,37.05567022]
[1741871522900,44.93367022,126.94,126.89,37.05567022]
[1741871523096,44.93367022,126.94,126.88,37.05567022]
[1741871523299,37.05567022,126.93,126.88,37.05567022]
[1741871523698,7.8789,126.92,126.86,88.7826]
[1741871523912,44.93457022,126.92,126.86,117.95567022]
[1741871524114,7.8777,126.94,126.89,37.05567022]
[1741871524292,44.93337022,126.94,126.88,37.05567022]
[1741871524616,44.93337022,126.94,126.89,37.05567022]
[1741871524824,7.8777,126.94,126.89,37.05567022]
[1741871524992,64.93277022,126.95,126.9,37.05567022]
[1741871525188,20.0,126.95,126.9,37.05567022]
[1741871525814,27.8772,126.95,126.9,44.93557022]
[1741871526011,37.05567022,126.92,126.87,37.05567022]
[1741871526401,37.05567022,126.93,126.87,37.05567022]
[1741871526588,64.93287022,126.95,126.9,37.05567022]
[1741871526994,64.93287022,126.95,126.89,37.05567022]
[1741871527202,37.05567022,126.94,126.89,37.05567022]
[1741871527415,64.96287022,126.95,126.89,37.05567022]
[1741871527796,27.9072,126.95,126.9,7.8802]
[1741871528000,37.05567022,126.94,126.88,37.05567022]
[1741871528222,37.05567022,126.93,126.88,44.93707022]
[1741871528607,37.05567022,126.94,126.88,44.93707022]
[1741871528800,37.05567022,126.93,126.88,7.8814]
[1741871528995,27.9072,126.95,126.87,37.05567022]
[1741871528996,37.05567022,126.92,126.87,37.05567022]
[1741871529221,37.05567022,126.92,126.86,125.83787022]
[1741871529422,37.05567022,126.93,126.88,37.05567022]
[1741871529620,37.05567022,126.93,126.84,0.063]
[1741871529621,7.8814,126.88,126.84,0.063]
[1741871529820,37.05567022,126.86,126.84,0.063]
[1741871530400,37.05567022,126.88,126.84,0.063]
[1741871530615,37.05567022,126.87,126.84,0.063]
[1741871531213,37.05567022,126.88,126.84,0.063]
[1741871531618,37.05567022,126.87,126.84,0.063]
[1741871531919,37.05567022,126.88,126.84,0.063]
[1741871532620,37.05567022,126.87,126.84,0.063]
[1741871532837,37.05567022,126.88,126.84,0.063]
[1741871533719,37.05567022,126.87,126.84,0.063]
[1741871534405,37.05567022,126.86,126.84,0.063]
[1741871534913,37.05567022,126.87,126.84,0.063]
[1741871537009,44.93707022,126.88,126.84,0.063]
[1741871537523,7.8802,126.9,126.84,37.11867022]
[1741871537718,44.93587022,126.9,126.84,37.11867022]
[1741871537919,37.05567022,126.89,126.84,37.11867022]
[1741871538112,37.05567022,126.88,126.84,0.063]
[1741871538314,37.05567022,126.87,126.84,0.063]
[1741871538628,37.05567022,126.86,126.84,0.063]
[1741871539114,37.05567022,126.87,126.84,0.063]
[1741871539313,18.64964886,126.89,126.84,0.063]
[1741871539515,37.05567022,126.87,126.84,0.063]
[1741871539714,55.70531908,126.89,126.84,7.9468]
[1741871539917,44.93587022,126.9,126.84,45.00247022]
[1741871540115,37.05567022,126.89,126.84,45.00247022]
[1741871540315,37.05567022,126.89,126.84,7.9468]
[1741871540721,37.05567022,126.89,126.84,45.00247022]
[1741871541212,37.05567022,126.89,126.84,7.9468]
[1741871541418,37.05567022,126.86,126.84,0.063]
[1741871542221,37.05567022,126.87,126.84,0.063]
[1741871542622,44.93737022,126.88,126.84,0.063]
[1741871543021,7.8802,126.9,126.84,0.063]
[1741871543223,37.05567022,126.89,126.84,0.063]
[1741871543407,37.05567022,126.88,126.84,0.063]
[1741871544115,37.05567022,126.87,126.84,0.063]
[1741871544315,44.93797022,126.87,126.84,0.063]
[1741871545935,37.05567022,126.86,126.84,0.063]
[1741871546130,37.05567022,126.85,126.84,0.063]
[1741871546347,37.05567022,126.86,126.84,0.063]
[1741871546513,37.05567022,126.85,126.84,0.063]
[1741871546910,63.58801908,126.86,126.84,0.063]
[1741871547216,7.8827,126.86,126.84,0.063]
[1741871547743,44.93837022,126.86,126.84,0.063]
[1741871548044,55.70531908,126.85,126.84,0.063]
[1741871548470,63.58861908,126.85,126.84,0.063]
[1741871549269,66.14421908,126.85,126.84,0.063]
[1741871549749,66.28638065,126.85,126.84,0.063]
[1741871550153,72.94924222,126.85,126.84,0.0001]
[1741871550357,0.14216157,126.83,126.81,0.063]
[1741871550545,50.03381876,126.82,126.81,0.063]
[1741871551053,50.03381876,126.82,126.75,0.063]
[1741871551054,0.14216157,126.8,126.75,0.063]
[1741871551565,20.0,126.73,126.72,0.063]
[1741871551770,61.86439562,126.73,126.72,0.063]
[1741871551941,62.00655719,126.73,126.72,0.063]
[1741871552138,43.21474676,126.73,126.72,0.063]
[1741871552340,57.19623778,126.73,126.72,0.063]
[1741871552646,65.08693778,126.73,126.72,0.063]
[1741871552854,7.8883,126.77,126.72,37.25923778]
[1741871553057,45.08453778,126.77,126.72,37.25923778]
[1741871553260,37.19623778,126.75,126.72,0.063]
[1741871553565,37.19623778,126.74,126.72,0.063]
[1741871554561,18.79181043,126.76,126.72,0.063]
[1741871554769,37.19623778,126.74,126.72,0.063]
[1741871555137,37.19623778,126.73,126.72,0.063]
[1741871555439,55.98804821,126.73,126.72,0.063]
[1741871555643,64.72804821,126.73,126.72,0.063]
[1741871555862,64.87020978,126.73,126.72,0.063]
[1741871557057,72.76090978,126.73,126.72,0.063]
[1741871558454,0.14216157,126.72,126.71,0.063]
[1741871558656,45.22979935,126.72,126.71,0.063]
[1741871558845,37.33839935,126.72,126.71,0.063]
[1741871559041,37.19623778,126.72,126.71,0.063]
[1741871559387,55.98804821,126.72,126.71,0.063]
[1741871559945,63.87944821,126.72,126.71,0.063]
[1741871560252,55.98804821,126.72,126.71,0.063]
[1741871560452,20.0,126.72,126.71,0.063]
[1741871560650,75.98804821,126.72,126.71,0.063]
[1741871560853,83.87944821,126.72,126.71,0.063]
[1741871561160,84.02160978,126.72,126.71,0.063]
[1741871561461,90.35662859,126.72,126.71,0.063]
[1741871564357,75.98804821,126.72,126.71,0.063]
[1741871564557,20.0,126.72,126.71,0.063]
[1741871565273,37.19623778,126.73,126.71,0.063]
[1741871565445,8.803,126.74,126.71,0.063]
[1741871565646,45.99923778,126.74,126.71,0.063]
[1741871565845,37.19623778,126.73,126.71,0.063]
[1741871566080,37.25923778,126.74,126.71,0.063]
[1741871566248,0.063,126.74,126.71,37.25923778]
[1741871566960,0.063,126.74,126.71,45.15103778]
[1741871567268,0.063,126.74,126.73,37.19623778]
[1741871567470,0.063,126.74,126.73,37.33839935]
[1741871568842,0.063,126.74,126.73,45.22909935]
[1741871569779,49.67393527,126.84,126.73,45.22909935]
[1741871569780,0.03,126.87,126.77,0.14216157]
[1741871570072,37.19623778,126.86,126.81,37.19623778]
[1741871570246,37.19623778,126.86,126.8,37.19623778]
[1741871570562,37.19623778,126.86,126.81,37.19623778]
[1741871570870,56.01804821,126.87,126.82,45.08133778]
[1741871571257,18.82181043,126.87,126.82,45.08133778]
[1741871571452,18.82181043,126.87,126.81,45.08173778]
[1741871571453,37.19623778,126.86,126.81,45.08173778]
[1741871571770,37.19623778,126.86,126.81,7.8855]
[1741871571957,37.19623778,126.86,126.81,45.08173778]
[1741871572143,0.17216157,126.87,126.82,37.19623778]
[1741871572144,37.22623778,126.87,126.82,37.19623778]
[1741871572347,0.03,126.87,126.84,37.19623778]
[1741871572755,0.03,126.87,126.81,108.5]
[1741871572756,37.22623778,126.87,126.82,37.19623778]
[1741871573172,37.19623778,126.86,126.79,7.8868]
[1741871573370,37.19623778,126.86,126.81,37.19623778]
[1741871573666,37.36839935,126.87,126.81,37.19623778]
[1741871573878,37.19623778,126.86,126.8,37.19623778]
[1741871574283,37.36839935,126.87,126.81,37.19623778]
[1741871574463,37.36839935,126.87,126.82,37.19623778]
[1741871575388,45.25049935,126.87,126.82,37.19623778]
[1741871575555,37.19623778,126.86,126.81,37.19623778]
[1741871576252,18.64964886,126.86,126.81,37.19623778]
[1741871576575,55.84588664,126.86,126.81,37.19623778]
[1741871577463,63.72888664,126.86,126.8,37.19623778]
[1741871577664,63.72888664,126.86,126.81,37.19623778]
[1741871577864,63.72888664,126.86,126.8,37.19623778]
[1741871578067,63.72888664,126.86,126.81,37.19623778]
[1741871578273,66.23278664,126.86,126.8,37.19623778]
[1741871578667,37.19623778,126.85,126.8,37.19623778]
[1741871578864,55.98804821,126.84,126.78,118.09623778]
[1741871579087,37.19623778,126.83,126.78,37.19623778]
[1741871579765,37.19623778,126.81,126.75,80.9]
[1741871579954,37.19623778,126.8,126.74,37.19623778]
[1741871580274,37.19623778,126.8,126.73,88.7903]
[1741871580275,37.19623778,126.81,126.76,37.19623778]
[1741871580665,7.8864,126.8,126.76,37.19623778]
[1741871581866,45.22379935,126.82,126.77,37.19623778]
[1741871582055,37.19623778,126.81,126.76,37.19623778]
[1741871582261,37.19623778,126.81,126.75,37.19623778]
[1741871582262,37.19623778,126.8,126.75,37.19623778]
[1741871582575,63.73208664,126.81,126.76,37.19623778]
[1741871582779,26.53584886,126.81,126.77,37.19623778]
[1741871582975,37.33839935,126.82,126.77,37.19623778]
[1741871582976,0.14216157,126.82,126.77,37.19623778]
[1741871583181,7.8848,126.83,126.79,37.19623778]
[1741871583887,45.08103778,126.83,126.78,37.19623778]
[1741871584186,7.8848,126.83,126.78,37.19623778]
[1741871584595,7.8848,126.83,126.79,37.19623778]
[1741871584892,0.14216157,126.85,126.8,37.19623778]
[1741871584893,37.19623778,126.85,126.8,37.19623778]
[1741871585073,37.19623778,126.85,126.79,37.19623778]
[1741871585385,2.5039,126.86,126.81,37.19623778]
[1741871585597,0.03,126.87,126.84,37.19623778]
[1741871585803,0.03,126.87,126.83,37.19623778]
[1741871586180,37.22623778,126.87,126.82,37.19623778]
[1741871586379,26.56174886,126.87,126.83,37.19623778]
[1741871586581,0.03,126.87,126.83,37.19623778]
[1741871587584,7.9121,126.87,126.83,37.19623778]
[1741871588098,0.03,126.87,126.83,37.19623778]
[1741871588304,0.03,126.87,126.86,37.19623778]
[1741871589113,0.03,126.87,126.85,45.07933778]
[1741871589314,0.03,126.87,126.86,37.19623778]
[1741871589610,0.03,126.87,126.85,45.07933778]
[1741871591800,0.03,126.87,126.85,37.19623778]
[1741871592715,0.03,126.87,126.84,45.07993778]
[1741871593821,0.03,126.87,126.83,37.19623778]
[1741871593984,0.03,126.87,126.82,16.6049]
[1741871593985,45.10823778,126.87,126.82,53.80113778]
[1741871594184,7.912,126.87,126.83,37.19623778]
[1741871594387,45.10823778,126.87,126.82,37.19623778]
[1741871594687,37.19623778,126.86,126.81,37.19623778]
[1741871595914,37.22623778,126.87,126.82,37.19623778]
[1741871596110,7.9123,126.87,126.82,37.19623778]
[1741871596408,0.03,126.87,126.85,37.19623778]
[1741871597117,0.03,126.87,126.84,37.19623778]
[1741871597288,7.912,126.87,126.84,37.19623778]
[1741871597487,0.03,126.87,126.84,37.19623778]
[1741871598008,0.03,126.87,126.85,37.19623778]
[1741871598192,0.03,126.87,126.84,37.19623778]
[1741871600115,0.03,126.87,126.84,45.08003778]
[1741871600414,0.03,126.87,126.84,37.19623778]
[1741871601098,0.03,126.87,126.83,37.19623778]
[1741871601281,37.19623778,126.86,126.81,37.19623778]
[1741871601487,37.19623778,126.84,126.79,45.08323778]
[1741871601687,37.19623778,126.85,126.8,37.19623778]
[1741871602509,13.9351,126.86,126.81,37.19623778]
[1741871602712,0.03,126.87,126.84,37.19623778]
[1741871604431,0.03,126.87,126.83,37.19623778]
[1741871606714,37.19623778,126.86,126.81,37.19623778]
[1741871606919,56.01804821,126.87,126.81,37.19623778]
[1741871607091,37.19623778,126.86,126.81,37.19623778]
[1741871607286,39.65683778,126.84,126.75,0.28432314]
[1741871607595,7.8851,126.82,126.77,37.19623778]
[1741871608185,45.08133778,126.82,126.77,37.19623778]
[1741871608604,45.08133778,126.82,126.75,16.5892]
[1741871608605,37.19623778,126.81,126.75,16.5892]
[1741871608811,45.08133778,126.82,126.77,37.19623778]
[1741871609295,7.8851,126.82,126.78,37.19623778]
[1741871610013,2.4606,126.84,126.8,37.19623778]
[1741871610191,10.3446,126.84,126.8,37.19623778]
[1741871610394,47.54083778,126.84,126.79,37.19623778]
[1741871610595,2.4606,126.84,126.81,37.19623778]
[1741871610795,2.5027,126.87,126.83,37.19623778]
[1741871611010,2.5027,126.87,126.84,37.19623778]
[1741871611944,2.5027,126.87,126.84,45.07993778]
[1741871614315,2.5027,126.87,126.84,37.19623778]
[1741871614730,2.5027,126.87,126.84,45.08013778]
[1741871616032,0.03,126.87,126.86,37.19623778]
[1741871616320,0.03,126.87,126.86,37.98056092]
[1741871616321,0.0001,126.87,126.86,37.98056092]
[1741871616532,0.0001,126.87,126.86,37.19623778]
[1741871617098,0.0001,126.87,126.83,7.8843]
[1741871617310,37.19623778,126.86,126.81,37.19623778]
[1741871618114,37.19623778,126.85,126.8,37.19623778]
[1741871618318,45.07953778,126.86,126.81,37.19623778]
[1741871619019,37.19633778,126.87,126.82,37.19623778]
[1741871619324,18.64974886,126.87,126.83,37.19623778]
[1741871620104,26.53194886,126.87,126.83,37.19623778]
[1741871620710,63.72818664,126.87,126.82,37.19623778]
[1741871620907,37.19623778,126.85,126.8,37.19623778]
[1741871621803,18.79181043,126.84,126.8,37.19623778]
[1741871622311,7.8845,126.83,126.79,37.19623778]
[1741871622630,26.67571043,126.84,126.8,37.19623778]
[1741871623131,26.67571043,126.84,126.79,37.19623778]
[1741871624041,26.67571043,126.84,126.77,16.5882]
[1741871624042,26.67571043,126.84,126.8,37.19623778]
[1741871626319,7.8827,126.86,126.81,37.19623778]
[1741871626519,7.8827,126.86,126.82,37.19623778]
[1741871626737,55.98814821,126.87,126.82,37.19623778]
[1741871626738,63.87034821,126.87,126.82,37.19623778]
[1741871627047,26.67411043,126.87,126.82,37.19623778]
[1741871627349,63.87034821,126.87,126.82,37.19623778]
[1741871627855,63.87034821,126.87,126.81,37.19623778]
[1741871628141,7.8839,126.84,126.78,7.8875]
[1741871628315,45.08013778,126.84,126.79,37.19623778]
[1741871629112,2.3996,126.82,126.78,37.19623778]
[1741871629740,39.59583778,126.82,126.77,37.19623778]
[1741871629920,46.23723778,126.82,126.77,37.19623778]
[1741871630118,7.8858,126.81,126.77,37.19623778]
[1741871630533,7.8858,126.81,126.74,8.71]
[1741871630734,55.98804821,126.8,126.75,37.19623778]
[1741871631015,55.98804821,126.8,126.76,37.19623778]
[1741871631238,18.79181043,126.8,126.76,37.19623778]
[1741871631441,45.08203778,126.81,126.78,37.19623778]
[1741871631442,18.79181043,126.81,126.78,37.19623778]
[1741871631848,9.041,126.82,126.79,37.19623778]
[1741871633149,2.3996,126.82,126.81,37.19623778]
[1741871633442,2.3544,126.85,126.81,45.87623778]
[1741871633645,37.33839935,126.86,126.77,27.609]
[1741871633823,37.33839935,126.86,126.81,37.19623778]
[1741871633824,0.14216157,126.84,126.81,37.19623778]
[1741871634230,18.79181043,126.86,126.82,37.19623778]
[1741871634461,26.67471043,126.86,126.82,37.19623778]
[1741871635128,63.87094821,126.86,126.8,37.19623778]
[1741871635332,83.57764821,126.86,126.8,37.19623778]
[1741871635527,63.87094821,126.86,126.81,37.19623778]
[1741871635936,63.87094821,126.86,126.77,37.19623778]
[1741871636148,18.79181043,126.84,126.8,37.19623778]
[1741871636328,2.5703,126.85,126.82,37.19623778]
[1741871636534,2.5703,126.85,126.77,37.19623778]
[1741871636535,2.5703,126.85,126.83,37.19623778]
[1741871637334,2.5703,126.85,126.78,27.74886157]
[1741871637545,2.5703,126.85,126.83,37.19623778]
[1741871638544,2.5703,126.85,126.84,37.19623778]
[1741871638752,0.0001,126.87,126.84,37.19623778]
[1741871638938,0.0001,126.87,126.85,37.19623778]
[1741871639650,0.0001,126.87,126.84,37.19623778]
[1741871639837,7.8822,126.87,126.84,37.19623778]
[1741871640238,7.8822,126.87,126.83,37.19623778]
[1741871640755,63.72808664,126.87,126.82,37.19623778]
[1741871640937,26.53184886,126.87,126.82,37.19623778]
[1741871641341,26.53184886,126.87,126.83,37.19623778]
[1741871642647,7.8822,126.87,126.83,37.19623778]
[1741871643347,0.14216157,126.86,126.82,37.19623778]
[1741871643538,18.79181043,126.86,126.81,37.19623778]
[1741871643743,18.79181043,126.86,126.82,37.19623778]
[1741871643936,7.8822,126.87,126.84,37.19623778]
[1741871644448,7.8822,126.87,126.83,37.19623778]
[1741871645060,0.0001,126.87,126.86,37.19623778]
[1741871645433,0.0001,126.87,126.83,37.22623778]
[1741871647430,37.33839935,126.85,126.83,0.03]
[1741871647631,37.19623778,126.85,126.83,0.03]
[1741871648060,58.55530978,126.84,126.83,0.03]
[1741871648230,58.55530978,126.84,126.75,0.03]
[1741871648231,0.14216157,126.82,126.76,23.21447293]
[1741871648437,0.14216157,126.82,126.77,23.21447293]
[1741871648636,41.86412179,126.83,126.78,23.21447293]
[1741871648637,18.64964886,126.83,126.78,23.21447293]
[1741871648952,7.8851,126.82,126.78,23.21447293]
[1741871649148,31.09957293,126.82,126.77,23.21447293]
[1741871649756,7.8851,126.82,126.78,23.21447293]
[1741871649947,31.09917293,126.83,126.78,23.21447293]
[1741871650354,45.01714915,126.83,126.78,37.13244915]
[1741871650660,2.4251,126.84,126.79,37.13244915]
[1741871650843,66.09139801,126.84,126.79,37.13244915]
[1741871652157,21.07474886,126.84,126.79,45.01924915]
[1741871652457,28.95874886,126.84,126.79,37.13244915]
[1741871652657,66.09119801,126.84,126.79,37.13244915]
[1741871652956,45.01754915,126.82,126.76,8.68]
[1741871653156,45.01754915,126.82,126.77,37.13244915]
[1741871653338,45.01754915,126.82,126.76,8.68]
[1741871653339,18.79181043,126.83,126.78,37.13244915]
[1741871653963,18.79181043,126.83,126.76,16.5687]
[1741871653964,18.64964886,126.82,126.77,37.13244915]
[1741871654467,37.13244915,126.82,126.77,37.13244915]
[1741871655058,7.8858,126.81,126.77,37.13244915]
[1741871655258,0.14216157,126.83,126.79,37.13244915]
[1741871655560,18.79181043,126.83,126.8,37.13244915]
[1741871655939,21.07474886,126.84,126.81,37.13244915]
[1741871656149,21.07474886,126.84,126.8,37.13244915]
[1741871656351,2.4251,126.84,126.81,37.13244915]
[1741871656856,2.4251,126.84,126.82,37.13244915]
[1741871657066,2.4251,126.84,126.81,37.13244915]
[1741871657556,2.4251,126.84,126.81,45.01814915]
[1741871657863,10.3092,126.84,126.8,37.13244915]
[1741871658249,10.3092,126.84,126.79,37.13244915]
[1741871658452,18.79181043,126.83,126.79,37.13244915]
[1741871658663,55.92425958,126.83,126.81,0.03]
[1741871659145,55.92425958,126.82,126.81,0.03]
[1741871659547,63.80935958,126.82,126.81,0.03]
[1741871660268,26.67691043,126.82,126.81,0.03]
[1741871660969,10.3092,126.84,126.81,0.03]
[1741871661549,45.30187229,126.82,126.81,0.03]
[1741871661756,18.79181043,126.79,126.75,0.03]
[1741871661981,2.4939,126.78,126.75,0.03]
[1741871662185,18.79181043,126.77,126.75,0.03]
[1741871662482,55.92425958,126.76,126.75,0.03]
[1741871663384,63.81315958,126.76,126.75,0.03]
[1741871663674,58.57412115,126.75,126.71,0.063]
[1741871663849,18.79181043,126.73,126.71,0.063]
[1741871664756,18.79181043,126.74,126.71,0.063]
[1741871664957,55.92425958,126.74,126.71,0.063]
[1741871665686,37.13244915,126.74,126.71,0.063]
[1741871665989,55.92425958,126.73,126.71,0.063]
[1741871666282,55.92425958,126.72,126.71,0.063]
[1741871666470,18.79181043,126.72,126.71,0.063]
[1741871667051,18.79181043,126.74,126.71,0.063]
[1741871667476,55.92425958,126.74,126.71,0.063]
[1741871667683,10.3972,126.75,126.71,0.063]
[1741871667684,63.95782115,126.72,126.71,0.063]
[1741871667858,18.933972,126.71,126.7,0.03]
[1741871668059,64.75622115,126.71,126.7,0.03]
[1741871669083,27.48161043,126.71,126.7,0.03]
[1741871669286,64.61405958,126.71,126.7,0.03]
[1741871669674,27.48161043,126.71,126.7,0.03]
[1741871669874,35.37361043,126.71,126.7,0.03]
[1741871670365,72.50605958,126.71,126.7,0.03]
[1741871670565,2.3442,126.77,126.7,155.1948983]
[1741871670781,2.3442,126.77,126.75,37.13244915]
[1741871671168,18.79181043,126.76,126.72,37.13244915]
[1741871671374,18.79181043,126.76,126.71,37.13244915]
[1741871671588,18.79181043,126.76,126.72,37.13244915]
[1741871671787,18.79181043,126.76,126.73,37.13244915]
[1741871672288,2.3442,126.77,126.74,37.13244915]
[1741871673397,2.3442,126.77,126.73,45.02304915]
[1741871674292,18.79181043,126.76,126.72,37.13244915]
[1741871674672,18.79181043,126.76,126.71,37.13244915]
[1741871675194,47.36524915,126.77,126.73,37.13244915]
[1741871675195,2.3442,126.77,126.73,37.13244915]
[1741871675968,10.2326,126.77,126.73,37.13244915]
[1741871677500,2.3442,126.77,126.73,37.13244915]
[1741871677986,10.2325,126.77,126.73,37.13244915]
[1741871678302,2.3442,126.77,126.73,37.13244915]